bitfinex-derivatives/quotes_SOLF0:USTF0_20241211
["timestamp","ask_amount","ask_price","bid_price","bid_amount"]
[1733918095677,6.67328965,224.88,224.82,6.10341771]
[1733918095971,6.67328965,224.86,224.79,6.67328965]
[1733918096174,6.67328965,224.84,224.78,63.63360119]
[1733918096776,2.2,224.85,224.78,63.63360119]
[1733918096971,6.67328965,224.83,224.78,63.63360119]
[1733918098074,6.67328965,224.83,224.79,5.21152362]
[1733918098282,6.67328965,224.83,224.78,62.28090119]
[1733918100681,6.67328965,224.81,224.72,1.4527]
[1733918100884,6.67328965,224.79,224.72,1.4527]
[1733918101080,2.2,224.78,224.72,8.12598965]
[1733918101374,8.87328965,224.77,224.72,1.4527]
[1733918101573,2.2,224.76,224.72,1.4527]
[1733918105684,2.2,224.76,224.71,6.67328965]
[1733918106486,2.2,224.76,224.7,12.05378011]
[1733918107076,5.27425793,224.89,224.74,6.67328965]
[1733918107278,6.67328965,224.81,224.74,6.67328965]
[1733918107483,2.2,224.8,224.76,6.67328965]
[1733918111080,6.67328965,224.81,224.76,6.67328965]
[1733918111278,2.2,224.8,224.76,6.67328965]
[1733918112590,6.67328965,224.81,224.74,6.67328965]
[1733918112780,8.87328965,224.79,224.72,6.67328965]
[1733918112980,6.67328965,224.77,224.7,12.05378011]
[1733918114687,2.2,224.78,224.72,6.67328965]
[1733918114882,8.87328965,224.78,224.72,6.67328965]
[1733918115591,2.2,224.78,224.72,6.67328965]
[1733918115793,5.27425793,224.89,224.74,6.67328965]
[1733918115794,6.67328965,224.81,224.74,6.67328965]
[1733918116086,2.2,224.8,224.74,6.67328965]
[1733918116994,2.2,224.79,224.74,6.67328965]
[1733918120295,5.27425793,224.89,224.78,6.67328965]
[1733918120488,6.67328965,224.85,224.78,6.67328965]
[1733918121889,2.2,224.84,224.78,6.67328965]
[1733918122690,8.87328965,224.84,224.78,6.67328965]
[1733918126086,8.87328965,224.84,224.74,1.4007]
[1733918126284,6.67328965,224.82,224.74,1.4007]
[1733918126489,6.67328965,224.8,224.74,8.07398965]
[1733918126893,2.2,224.79,224.74,8.07398965]
[1733918127893,6.67328965,224.78,224.7,12.05378011]
[1733918128096,6.67328965,224.76,224.7,12.05378011]
[1733918129297,2.2,224.86,224.74,6.67328965]
[1733918129501,8.87328965,224.87,224.8,6.67328965]
[1733918129791,2.2,224.86,224.8,6.67328965]
[1733918130395,2.2,224.86,224.75,24.41367084]
[1733918130602,2.2,224.86,224.79,6.67328965]
[1733918131300,2.2,224.85,224.79,6.67328965]
[1733918131891,2.2,224.85,224.77,1.3837]
[1733918132094,2.2,224.85,224.79,6.67328965]
[1733918133302,6.67328965,224.87,224.79,6.67328965]
[1733918133498,2.2,224.86,224.77,1.3837]
[1733918134003,2.2,224.86,224.79,6.67328965]
[1733918134206,6.67328965,224.83,224.77,1.3837]
[1733918134503,6.67328965,224.81,224.73,6.67328965]
[1733918134703,6.67328965,224.81,224.71,6.10341771]
[1733918134704,6.67328965,224.79,224.71,7.54191771]
[1733918134898,6.67328965,224.79,224.72,6.67328965]
[1733918137599,6.67328965,224.79,224.73,6.67328965]
[1733918138403,2.2,224.8,224.75,6.67328965]
[1733918138599,6.67328965,224.83,224.75,6.67328965]
[1733918138801,2.2,224.81,224.75,6.67328965]
[1733918142408,8.87328965,224.81,224.75,6.67328965]
[1733918145206,6.67328965,224.79,224.73,6.67328965]
[1733918145712,6.67328965,224.77,224.71,8.11178965]
[1733918146005,2.2,224.76,224.71,8.11178965]
[1733918147305,2.2,224.8,224.75,6.67328965]
[1733918147610,6.67328965,224.79,224.73,6.67328965]
[1733918147811,6.67328965,224.77,224.7,71.35072648]
[1733918148109,6.67328965,224.75,224.7,71.35072648]
[1733918148316,2.2,224.75,224.7,71.35072648]
[1733918148807,2.2,224.75,224.7,65.97023602]
[1733918149409,8.87328965,224.75,224.7,65.97023602]
[1733918151114,6.67328965,224.73,224.7,65.97023602]
[1733918151307,6.67328965,224.73,224.67,11.8818288]
[1733918151510,6.67328965,224.73,224.65,4.0594]
[1733918151704,6.67328965,224.71,224.65,7.99518965]
[1733918151910,6.67328965,224.71,224.65,6.67328965]
[1733918152114,2.2,224.7,224.65,6.67328965]
[1733918152711,2.2,224.7,224.63,6.67328965]
[1733918153703,2.2,224.7,224.61,6.10341771]
[1733918153903,2.2,224.7,224.63,6.67328965]
[1733918154105,2.2,224.7,224.64,5.45356524]
[1733918154712,6.67328965,224.69,224.64,5.45356524]
[1733918157107,6.67328965,224.67,224.59,4.0486]
[1733918157303,6.67328965,224.65,224.59,4.0486]
[1733918158214,46.95398582,224.8,224.59,5.45440298]
[1733918158215,6.67328965,224.62,224.59,5.45440298]
[1733918158513,6.67328965,224.62,224.56,6.67328965]
[1733918159011,4.2958,224.74,224.58,6.67328965]
[1733918159215,6.67328965,224.66,224.6,6.67328965]
[1733918159508,2.2,224.67,224.62,6.67328965]
[1733918159905,6.67328965,224.66,224.58,5.2290056]
[1733918160108,6.67328965,224.64,224.59,6.67328965]
[1733918160307,6.67328965,224.64,224.58,5.2290056]
[1733918160606,6.67328965,224.62,224.58,5.2290056]
[1733918160807,8.87328965,224.62,224.58,5.2290056]
[1733918161610,2.2,224.62,224.58,11.90229525]
[1733918161814,4.2958,224.74,224.6,6.67328965]
[1733918161815,2.2,224.66,224.6,6.67328965]
[1733918162307,4.2958,224.74,224.64,6.67328965]
[1733918162507,6.67328965,224.7,224.64,6.67328965]
[1733918162709,2.2,224.73,224.64,6.67328965]
[1733918162911,5.21071835,224.79,224.66,6.67328965]
[1733918163112,2.2,224.78,224.7,6.67328965]
[1733918163311,2.2,224.77,224.7,6.67328965]
[1733918163514,6.67328965,224.76,224.7,6.67328965]
[1733918163709,6.67328965,224.76,224.64,4.2704]
[1733918163911,2.2,224.77,224.72,6.67328965]
[1733918164515,8.87328965,224.79,224.72,6.67328965]
[1733918165209,6.67328965,224.77,224.64,4.2704]
[1733918165418,6.67328965,224.77,224.7,6.67328965]
[1733918167114,6.67328965,224.77,224.64,4.2704]
[1733918167312,6.67328965,224.77,224.7,6.67328965]
[1733918167818,2.2,224.79,224.7,6.67328965]
[1733918168019,8.87328965,224.79,224.72,6.67328965]
[1733918169322,6.67328965,224.77,224.7,6.67328965]
[1733918170115,2.2,224.79,224.7,6.67328965]
[1733918170317,2.2,224.86,224.77,6.67328965]
[1733918170523,2.2,224.86,224.68,2.2]
[1733918170524,2.2,224.86,224.79,6.67328965]
[1733918170818,2.2,224.85,224.79,6.67328965]
[1733918171014,2.6824,224.9,224.81,6.67328965]
[1733918171318,2.2,224.89,224.83,6.67328965]
[1733918172217,2.2,224.89,224.75,1.384]
[1733918172218,6.67328965,224.86,224.75,1.384]
[1733918172718,6.67328965,224.86,224.79,6.67328965]
[1733918173117,6.67328965,224.86,224.75,1.384]
[1733918173118,2.2,224.89,224.76,10.44372105]
[1733918173320,12.64372105,224.89,224.76,10.44372105]
[1733918174029,2.2,224.89,224.76,10.44372105]
[1733918174216,10.44372105,224.92,224.79,10.44372105]
[1733918174414,2.2,224.91,224.79,10.44372105]
[1733918175813,2.8802,224.98,224.79,10.44372105]
[1733918176014,10.44372105,224.95,224.82,10.44372105]
[1733918176219,10.44372105,224.95,224.83,1.4385]
[1733918177420,2.2,224.94,224.83,1.4385]
[1733918179122,10.44372105,224.92,224.83,6.74575431]
[1733918185029,2.2,224.94,224.83,6.74575431]
[1733918187025,2.2,224.94,224.83,5.30725431]
[1733918187426,10.44372105,224.92,224.83,5.30725431]
[1733918190734,2.2,224.94,224.83,5.30725431]
[1733918191236,10.44372105,224.95,224.83,5.30725431]
[1733918191429,2.2,224.94,224.85,10.44372105]
[1733918193032,13.32392105,224.98,224.85,10.44372105]
[1733918193228,6.67794016,224.96,224.9,6.67794016]
[1733918193424,2.2,224.97,224.9,6.67794016]
[1733918193629,8.87794016,224.97,224.9,6.67794016]
[1733918196437,48.65964531,225.03,224.9,6.67794016]
[1733918196637,2.2,225.02,224.9,6.67794016]
[1733918196826,6.67794016,224.98,224.93,6.67794016]
[1733918197025,2.2,224.97,224.86,1.3123]
[1733918197226,48.65964531,225.03,224.92,6.67794016]
[1733918197631,48.65964531,225.03,224.94,6.67794016]
[1733918197632,6.67794016,225.01,224.94,6.67794016]
[1733918198828,2.2,225.0,224.94,6.67794016]
[1733918199830,48.65964531,225.03,224.96,6.67794016]
[1733918199831,45.83994531,225.03,224.96,6.67794016]
[1733918200033,2.2,225.02,225.0,6.67794016]
[1733918200429,46.22,225.19,225.0,6.67794016]
[1733918200635,6.67794016,225.08,225.0,6.67794016]
[1733918200835,2.2,225.07,225.02,6.67794016]
[1733918201040,2.2,225.06,225.02,6.67794016]
[1733918201338,2.2,225.06,224.92,1.4016]
[1733918201541,2.2,225.06,225.02,6.67794016]
[1733918201743,6.67794016,225.09,225.02,6.67794016]
[1733918201931,2.2,225.08,225.02,6.67794016]
[1733918202536,6.67794016,225.09,224.92,1.4016]
[1733918202841,2.2,225.08,225.04,6.67794016]
[1733918206942,6.67794016,225.11,225.04,6.67794016]
[1733918207141,2.2,225.1,225.04,6.67794016]
[1733918207541,2.2,225.1,224.97,1.3653]
[1733918207542,8.02674016,225.13,225.06,6.67794016]
[1733918207743,2.2,225.1,225.06,6.67794016]
[1733918208335,2.2,225.1,224.97,1.3653]
[1733918208542,2.2,225.1,225.05,6.67794016]
[1733918209545,2.2,225.1,224.97,1.3653]
[1733918209749,6.67794016,225.09,224.97,1.3653]
[1733918210242,6.67794016,225.09,225.02,6.67794016]
[1733918211649,6.67794016,225.09,225.03,5.31443846]
[1733918211949,6.67794016,225.09,225.04,6.67794016]
[1733918213653,6.67794016,225.09,225.03,5.31443846]
[1733918213851,6.67794016,225.09,225.04,6.67794016]
[1733918215050,6.67794016,225.09,225.03,5.31443846]
[1733918215347,6.67794016,225.09,225.04,6.67794016]
[1733918215653,2.2,225.1,225.04,6.67794016]
[1733918218942,2.2,225.1,225.03,5.31443846]
[1733918219143,2.2,225.1,225.06,6.67794016]
[1733918222153,2.2,225.1,225.03,5.31443846]
[1733918222349,2.2,225.09,225.05,6.67794016]
[1733918227650,2.2,225.1,225.05,6.67794016]
[1733918228053,2.2,225.1,225.07,6.67794016]
[1733918228656,2.2,225.1,225.05,6.67794016]
[1733918229750,2.2,225.1,225.07,6.67794016]
[1733918230255,2.2,225.1,225.03,5.31443846]
[1733918230456,2.2,225.1,225.04,6.67794016]
[1733918232259,2.2,225.1,225.03,5.31443846]
[1733918232556,2.2,225.1,225.05,6.67794016]
[1733918233253,8.87794016,225.1,225.04,6.67794016]
[1733918233449,2.2,225.1,225.06,6.67794016]
[1733918234555,5.32160452,225.17,225.08,6.67794016]
[1733918234756,6.67794016,225.14,225.03,5.31443846]
[1733918234957,6.67794016,225.14,225.07,6.67794016]
[1733918237251,2.2,225.13,225.07,6.67794016]
[1733918240052,2.2,225.13,225.03,5.31443846]
[1733918240053,6.67794016,225.15,225.09,6.67794016]
[1733918240251,2.2,225.14,225.09,6.67794016]
[1733918241357,2.2,225.13,225.09,6.67794016]
[1733918243955,2.2,225.13,225.04,1.4117]
[1733918244162,8.87794016,225.13,225.07,6.67794016]
[1733918245858,8.87794016,225.13,225.08,3.97665305]
[1733918246060,8.87794016,225.13,225.07,6.67794016]
[1733918246263,2.2,225.13,225.09,6.67794016]
[1733918246654,2.2,225.13,225.1,3.97677028]
[1733918246855,2.2,225.13,225.09,6.67794016]
[1733918247065,2.2,225.13,225.1,3.97551463]
[1733918247262,8.87794016,225.13,225.07,6.67794016]
[1733918247461,8.87794016,225.13,225.08,3.97566915]
[1733918247662,8.87794016,225.13,225.09,3.97566915]
[1733918247859,8.87794016,225.13,225.1,3.97566915]
[1733918248059,8.87794016,225.13,225.07,6.67794016]
[1733918248265,8.87794016,225.13,225.08,3.9752592]
[1733918248569,8.87794016,225.13,225.07,6.67794016]
[1733918248762,8.87794016,225.13,225.08,3.97521184]
[1733918248963,8.87794016,225.13,225.09,3.97521184]
[1733918249165,8.87794016,225.13,225.1,3.97521184]
[1733918249362,8.87794016,225.13,225.07,6.67794016]
[1733918250064,8.87794016,225.13,225.08,3.97459585]
[1733918250264,8.87794016,225.13,225.09,3.97459585]
[1733918250462,8.87794016,225.13,225.1,3.97459585]
[1733918250766,2.2,225.13,225.11,3.97415899]
[1733918251064,2.2,225.13,225.04,1.4117]
[1733918251065,2.2,225.13,225.09,6.67794016]
[1733918251265,2.2,225.13,225.1,3.97394795]
[1733918251468,2.2,225.13,225.11,3.97394795]
[1733918251666,2.2,225.13,225.09,6.67794016]
[1733918251861,2.2,225.13,225.1,3.9733718]
[1733918252162,2.2,225.13,225.11,3.97335497]
[1733918252359,2.2,225.13,225.09,6.67794016]
[1733918252868,2.2,225.13,225.1,3.97366088]
[1733918253064,2.2,225.13,225.11,3.97366088]
[1733918253266,2.2,225.13,225.09,6.67794016]
[1733918253470,2.2,225.13,225.1,3.9739362]
[1733918253667,2.2,225.13,225.11,3.9739362]
[1733918253866,2.2,225.13,225.09,6.67794016]
[1733918254068,2.2,225.13,225.1,3.97386093]
[1733918255469,2.2,225.13,225.09,6.67794016]
[1733918255670,2.2,225.13,225.1,3.97322621]
[1733918255867,2.2,225.13,225.11,3.97322621]
[1733918256071,2.2,225.13,225.09,6.67794016]
[1733918256371,2.2,225.13,225.1,3.97321358]
[1733918256566,2.2,225.13,225.11,3.97321358]
[1733918256871,2.2,225.13,225.09,6.67794016]
[1733918257067,2.2,225.13,225.1,3.97332564]
[1733918257268,2.2,225.13,225.11,3.97332564]
[1733918257471,2.2,225.13,225.09,6.67794016]
[1733918257772,2.2,225.13,225.1,3.97377049]
[1733918257969,2.2,225.13,225.11,3.97377049]
[1733918258165,2.2,225.13,225.09,6.67794016]
[1733918258372,2.2,225.13,225.1,3.97364532]
[1733918258565,2.2,225.13,225.11,3.97398232]
[1733918258773,2.2,225.13,225.09,6.67794016]
[1733918259879,2.2,225.13,225.1,3.97399848]
[1733918260078,46.18,225.34,225.11,3.97399848]
[1733918260274,46.18,225.34,225.12,6.67794016]
[1733918260275,2.18,225.21,225.12,6.67794016]
[1733918260577,2.18,225.21,225.18,6.67794016]
[1733918260776,2.18,225.22,225.18,6.67794016]
[1733918261270,2.18,225.22,225.19,3.97170528]
[1733918261677,40.41326489,225.33,225.19,3.97170528]
[1733918261877,6.67794016,225.25,225.19,3.97170528]
[1733918262078,2.18,225.24,225.19,3.97170528]
[1733918262978,2.18,225.24,225.18,6.67794016]
[1733918263580,6.67794016,225.25,225.18,6.67794016]
[1733918263877,2.18,225.24,225.18,6.67794016]
[1733918265077,6.67794016,225.19,225.15,3.97067782]
[1733918265280,6.67794016,225.19,225.12,4.1512]
[1733918265281,2.18,225.18,225.12,4.1512]
[1733918265475,6.67794016,225.17,225.12,1.4454]
[1733918267276,6.67794016,225.17,225.11,11.97569138]
[1733918268080,6.67794016,225.17,225.11,6.67794016]
[1733918269282,6.67794016,225.15,225.08,6.67794016]
[1733918270476,6.67794016,225.15,225.09,3.97601858]
[1733918270677,6.67794016,225.15,225.08,6.67794016]
[1733918271584,6.67794016,225.15,225.08,11.99119795]
[1733918273083,6.67794016,225.15,225.09,3.97649241]
[1733918273280,6.67794016,225.15,225.1,3.97649241]
[1733918273484,6.67794016,225.15,225.08,11.99119795]
[1733918273680,6.67794016,225.15,225.09,3.97683322]
[1733918273887,6.67794016,225.15,225.1,3.97683322]
[1733918274087,6.67794016,225.15,225.08,11.99119795]
[1733918274287,6.67794016,225.15,225.09,3.97717284]
[1733918274488,6.67794016,225.15,225.1,10.655113]
[1733918274684,6.67794016,225.15,225.1,6.67794016]
[1733918275580,6.67794016,225.17,225.1,6.67794016]
[1733918275784,6.67794016,225.17,225.11,3.97711037]
[1733918276086,6.67794016,225.17,225.1,6.67794016]
[1733918276283,6.67794016,225.17,225.11,3.97691836]
[1733918276486,6.67794016,225.17,225.1,6.67794016]
[1733918277985,5.20149141,225.24,225.12,6.67794016]
[1733918278282,5.20149141,225.24,225.14,6.67794016]
[1733918278283,6.67794016,225.2,225.14,6.67794016]
[1733918278485,5.20149141,225.24,225.14,6.67794016]
[1733918278689,4.0937,225.25,225.16,6.67794016]
[1733918278690,6.67794016,225.22,225.16,6.67794016]
[1733918278879,2.18,225.21,225.16,6.67794016]
[1733918280080,2.18,225.22,225.2,6.67794016]
[1733918280286,2.18,225.23,225.2,6.67794016]
[1733918282989,2.18,225.23,225.18,6.67794016]
[1733918283984,2.18,225.23,225.1,2.18]
[1733918284190,2.18,225.23,225.19,3.97154557]
[1733918285592,2.18,225.23,225.18,6.67794016]
[1733918285792,2.18,225.23,225.19,3.96902928]
[1733918286090,2.18,225.23,225.18,6.67794016]
[1733918286291,2.18,225.23,225.19,3.96875841]
[1733918286490,2.18,225.23,225.18,6.67794016]
[1733918286691,2.18,225.23,225.19,3.96801152]
[1733918286988,6.67794016,225.26,225.18,6.67794016]
[1733918287193,2.18,225.25,225.19,3.9678897]
[1733918287384,2.18,225.25,225.18,6.67794016]
[1733918287589,2.18,225.25,225.19,3.96713104]
[1733918287790,2.18,225.25,225.18,6.67794016]
[1733918287991,2.18,225.25,225.19,3.96721951]
[1733918288295,2.18,225.25,225.18,6.67794016]
[1733918289793,2.18,225.25,225.2,6.67794016]
[1733918293000,6.67794016,225.22,225.16,6.67794016]
[1733918295301,6.67794016,225.22,225.16,12.02997826]
[1733918297205,2.18,225.25,225.16,12.02997826]
[1733918297405,6.67794016,225.24,225.16,12.02997826]
[1733918299206,6.67794016,225.24,225.17,3.96847079]
[1733918299401,6.67794016,225.24,225.16,12.02997826]
[1733918299402,6.67794016,225.24,225.18,3.96847079]
[1733918299601,6.67794016,225.24,225.16,12.02997826]
[1733918299798,6.67794016,225.24,225.17,3.9689094]
[1733918299999,6.67794016,225.24,225.18,3.9689094]
[1733918300207,6.67794016,225.24,225.16,12.02997826]
[1733918300407,6.67794016,225.24,225.17,3.96930129]
[1733918300606,6.67794016,225.24,225.18,3.96930129]
[1733918300907,6.67794016,225.24,225.16,12.02997826]
[1733918301107,2.18,225.25,225.16,12.02997826]
[1733918301306,6.67794016,225.24,225.17,3.97161395]
[1733918301506,6.67794016,225.24,225.18,3.97161395]
[1733918301708,6.67794016,225.24,225.16,12.02997826]
[1733918301908,6.67794016,225.24,225.17,3.97253054]
[1733918302106,6.67794016,225.24,225.18,3.97253054]
[1733918302302,6.67794016,225.24,225.16,12.02997826]
[1733918302507,6.67794016,225.24,225.17,3.97301554]
[1733918302705,6.67794016,225.24,225.18,3.97301554]
[1733918302902,6.67794016,225.24,225.16,12.02997826]
[1733918303103,6.67794016,225.24,225.17,3.97312124]
[1733918303407,6.67794016,225.24,225.18,3.97312124]
[1733918303606,6.67794016,225.24,225.19,3.97356674]
[1733918303906,6.67794016,225.24,225.16,12.02997826]
[1733918304108,6.67794016,225.24,225.17,3.97355969]
[1733918304303,6.67794016,225.24,225.18,3.97355969]
[1733918304507,6.67794016,225.24,225.19,3.97355969]
[1733918304703,6.67794016,225.24,225.16,12.02997826]
[1733918305002,6.67794016,225.24,225.17,3.97293908]
[1733918305200,2.18,225.25,225.18,3.97293908]
[1733918305404,6.67794016,225.24,225.19,3.97293908]
[1733918305600,6.67794016,225.24,225.16,12.02997826]
[1733918305809,6.67794016,225.24,225.17,3.97300847]
[1733918306009,6.67794016,225.24,225.18,3.97300847]
[1733918306204,6.67794016,225.24,225.19,3.97300847]
[1733918306405,6.67794016,225.24,225.16,12.02997826]
[1733918306605,6.67794016,225.24,225.17,3.97298967]
[1733918306906,6.67794016,225.24,225.18,10.65092983]
[1733918307203,6.67794016,225.24,225.18,6.67794016]
[1733918307406,6.67794016,225.24,225.19,3.97304401]
[1733918307707,6.67794016,225.24,225.18,6.67794016]
[1733918308307,6.67794016,225.24,225.19,3.97306216]
[1733918308508,6.67794016,225.24,225.18,6.67794016]
[1733918308705,6.67794016,225.24,225.19,3.97310995]
[1733918308906,2.8438,225.27,225.2,3.97118219]
[1733918309110,2.8438,225.27,225.21,6.67794016]
[1733918309111,2.18,225.26,225.21,6.67794016]
[1733918310411,6.67794016,225.27,225.21,6.67794016]
[1733918310604,2.18,225.26,225.21,6.67794016]
[1733918310803,2.18,225.26,225.17,1.3593]
[1733918311112,6.67794016,225.25,225.18,3.97173887]
[1733918311509,6.67794016,225.25,225.19,3.97173887]
[1733918311706,6.67794016,225.25,225.2,3.97173887]
[1733918312009,6.67794016,225.25,225.17,8.03724016]
[1733918312210,6.67794016,225.25,225.18,3.97203569]
[1733918312511,6.67794016,225.25,225.19,3.97203569]
[1733918312709,6.67794016,225.25,225.2,3.97203569]
[1733918312909,6.67794016,225.25,225.17,8.03724016]
[1733918313303,6.67794016,225.25,225.17,1.3593]
[1733918313504,6.67794016,225.25,225.17,8.03724016]
[1733918314012,2.18,225.26,225.21,6.67794016]
[1733918314207,8.14329791,225.34,225.23,6.67794016]
[1733918314414,2.18,225.33,225.25,6.67794016]
[1733918314611,6.67794016,225.32,225.26,3.97049934]
[1733918314813,6.67794016,225.32,225.25,6.67794016]
[1733918315011,6.67794016,225.32,225.26,3.96981013]
[1733918315215,2.18,225.31,225.27,3.96981013]
[1733918316915,2.18,225.31,225.28,3.96981013]
[1733918317116,2.18,225.31,225.25,6.67794016]
[1733918317316,2.18,225.31,225.26,3.96890306]
[1733918317516,2.18,225.31,225.27,3.96890306]
[1733918317715,2.18,225.31,225.28,3.96890306]
[1733918317914,6.67794016,225.32,225.25,6.67794016]
[1733918318221,2.18,225.31,225.26,3.96926287]
[1733918318415,2.18,225.31,225.27,3.96926287]
[1733918318612,2.18,225.31,225.28,3.96926287]
[1733918318814,2.18,225.31,225.25,6.67794016]
[1733918319011,2.18,225.31,225.26,3.96934589]
[1733918319412,6.67794016,225.28,225.26,3.96934589]
[1733918319712,6.67794016,225.28,225.21,9.54824016]
[1733918319912,6.67794016,225.28,225.22,3.97144363]
[1733918320111,6.67794016,225.28,225.23,3.97144363]
[1733918320519,6.67794016,225.28,225.24,3.97175533]
[1733918320821,6.67794016,225.28,225.21,9.54824016]
[1733918321016,6.67794016,225.28,225.22,3.97131833]
[1733918321216,6.67794016,225.28,225.23,3.97131833]
[1733918321515,6.67794016,225.28,225.24,3.97131833]
[1733918321719,6.67794016,225.28,225.25,3.97131833]
[1733918321919,6.67794016,225.28,225.21,9.54824016]
[1733918322125,6.67794016,225.28,225.22,3.9727928]
[1733918322916,6.67794016,225.26,225.22,3.9727928]
[1733918323117,2.18,225.25,225.22,3.9727928]
[1733918323321,6.67794016,225.24,225.23,3.9727928]
[1733918323622,6.67794016,225.24,225.17,8.03724016]
[1733918323820,2.18,225.25,225.18,3.97551512]
[1733918323821,6.67794016,225.22,225.18,3.97551512]
[1733918324018,6.67794016,225.22,225.19,3.97551512]
[1733918324520,6.67794016,225.22,225.2,3.97589629]
[1733918325522,6.67794016,225.22,225.21,3.97589629]
[1733918326925,6.67794016,225.22,225.17,1.3593]
[1733918327218,6.67794016,225.22,225.21,3.97568974]
[1733918330622,6.67794016,225.22,225.21,3.97788778]
[1733918332422,6.67794016,225.22,225.11,4.0741]
[1733918332623,6.67794016,225.15,225.12,3.97885758]
[1733918332824,2.18,225.14,225.13,3.97885758]
[1733918333618,2.18,225.14,225.09,5.39741357]
[1733918334125,6.67794016,225.13,225.09,5.39741357]
[1733918334422,6.67794016,225.13,225.06,1.3579]
[1733918334619,6.67794016,225.13,225.06,8.03584016]
[1733918335532,6.67794016,225.11,225.06,1.3579]
[1733918335726,6.67794016,225.09,225.04,6.67794016]
[1733918335925,2.18,225.08,225.03,1.4498]
[1733918336535,2.18,225.08,225.03,6.887624]
[1733918336825,6.67794016,225.07,225.03,6.887624]
[1733918337023,2.18,225.08,225.03,13.56556416]
[1733918338330,6.67794016,225.07,225.03,6.887624]
[1733918338525,6.67794016,225.07,225.02,1.4535]
[1733918338832,6.67794016,225.05,225.0,1.3828]
[1733918339028,6.67794016,225.03,225.0,1.3828]
[1733918339227,2.18,225.02,225.0,1.3828]
[1733918339427,2.18,225.02,224.97,5.251232]
[1733918339827,6.67794016,225.01,224.97,5.251232]
[1733918340028,6.67794016,225.01,224.95,8.06224016]
[1733918340421,6.67794016,225.01,224.95,1.3843]
[1733918340626,6.67794016,224.99,224.95,1.3843]
[1733918343230,18.56338047,225.23,224.97,6.67794016]
[1733918343428,6.67794016,225.03,224.97,6.67794016]
[1733918343631,2.18,225.02,224.97,6.67794016]
[1733918344026,2.18,225.02,224.95,1.3843]
[1733918344027,2.18,225.02,224.99,6.67794016]
[1733918344533,2.18,225.02,224.95,1.3843]
[1733918344737,8.85794016,225.02,224.95,1.3843]
[1733918344938,8.85794016,225.02,224.95,8.06224016]
[1733918345336,6.67794016,224.98,224.95,1.3843]
[1733918345533,2.18,224.97,224.95,1.3843]
[1733918345930,6.67794016,224.96,224.92,1.3933]
[1733918346537,6.67794016,224.96,224.9,6.67794016]
[1733918351347,6.67794016,224.96,224.9,12.01062179]
[1733918351741,6.67794016,224.94,224.86,4.1512]
[1733918352040,6.67794016,224.92,224.86,4.1512]
[1733918352344,2.18,224.91,224.86,4.1512]
[1733918353942,2.18,224.91,224.87,5.2863867]
[1733918355639,2.18,224.91,224.87,11.96432686]
[1733918355845,2.18,224.95,224.89,6.67794016]
[1733918356244,2.18,224.95,224.91,6.67794016]
[1733918357143,2.18,224.95,224.89,6.67794016]
[1733918360242,6.67794016,224.91,224.86,1.4392]
[1733918360447,2.18,224.9,224.86,1.4392]
[1733918361047,6.67794016,224.89,224.82,6.67794016]
[1733918361448,6.67794016,224.89,224.81,1.4161]
[1733918361650,6.67794016,224.89,224.82,6.67794016]
[1733918362650,6.67794016,224.87,224.81,1.4161]
[1733918364250,6.67794016,224.87,224.82,6.67794016]
[1733918364949,6.67794016,224.87,224.83,5.23563709]
[1733918368357,2.18,224.86,224.83,5.23563709]
[1733918370355,2.18,224.87,224.83,5.23563709]
[1733918371055,2.18,224.87,224.84,6.67794016]
[1733918382465,2.18,224.87,224.83,11.30420591]
[1733918382962,2.18,224.87,224.83,5.23563709]
[1733918383864,2.18,224.87,224.84,6.67794016]
[1733918386666,2.18,224.87,224.83,5.23563709]
[1733918390366,2.18,224.87,224.81,8.09404016]
[1733918390866,2.18,224.87,224.82,5.38047072]
[1733918391273,8.85794016,224.87,224.82,5.38047072]
[1733918393677,2.18,224.87,224.82,5.38047072]
[1733918393968,8.85794016,224.87,224.82,5.38047072]
[1733918394169,2.18,224.87,224.82,5.38047072]
[1733918394376,8.85794016,224.87,224.82,5.38047072]
[1733918397170,2.18,224.87,224.82,5.38047072]
[1733918397372,2.18,224.87,224.83,6.67794016]
[1733918400475,2.18,224.87,224.81,8.09404016]
[1733918400676,2.8011,224.95,224.83,6.67794016]
[1733918400877,6.67794016,224.93,224.86,6.67794016]
[1733918401375,2.18,224.94,224.86,6.67794016]